bitfinex/quotes_BTCUSD_20230113
["timestamp","ask_amount","ask_price","bid_price","bid_amount"]
[1673574528285,0.00488172,18773.0,18772.0,0.23859841]
[1673574529065,0.00488172,18773.0,18772.0,0.033]
[1673574529317,0.64719332,18773.0,18772.0,0.033]
[1673574530058,0.64191472,18773.0,18772.0,0.033]
[1673574533274,1.05425287,18773.0,18772.0,0.033]
[1673574533992,0.73469487,18773.0,18772.0,0.033]
[1673574534239,0.89347893,18773.0,18772.0,0.033]
[1673574534490,2.18600594,18773.0,18772.0,0.033]
[1673574534733,2.04528609,18773.0,18772.0,0.033]
[1673574535204,2.34528609,18773.0,18772.0,0.033]
[1673574536241,2.02572809,18773.0,18772.0,0.033]
[1673574536476,2.34528609,18773.0,18772.0,0.033]
[1673574536715,2.02572809,18773.0,18772.0,0.033]
[1673574536968,2.63902273,18773.0,18772.0,0.033]
[1673574537884,3.3246597,18773.0,18772.0,0.033]
[1673574538112,3.4980885,18773.0,18772.0,0.033]
[1673574538347,2.86333366,18773.0,18772.0,0.033]
[1673574538809,2.54526945,18773.0,18772.0,0.033]
[1673574539573,2.54526945,18773.0,18770.0,0.01402688]
[1673574539811,0.15910267,18771.0,18770.0,0.01402688]
[1673574540046,0.81895369,18771.0,18770.0,0.01402688]
[1673574540287,0.57866067,18771.0,18770.0,0.01402688]
[1673574540523,0.419558,18771.0,18770.0,0.01402688]
[1673574540760,0.1,18771.0,18770.0,0.58346827]
[1673574540994,0.11,18771.0,18770.0,0.58846827]
[1673574541480,0.10915,18771.0,18770.0,0.58846827]
[1673574541957,0.10915,18771.0,18770.0,0.01902688]
[1673574543505,0.10915,18771.0,18770.0,0.47029189]
[1673574545211,0.10921,18771.0,18770.0,0.47029189]
[1673574547699,0.720404,18771.0,18770.0,0.01902688]
[1673574548179,1.039962,18771.0,18770.0,0.01902688]
[1673574548893,0.720404,18771.0,18770.0,0.01902688]
[1673574549383,1.039962,18771.0,18770.0,0.01902688]
[1673574550562,1.19906467,18771.0,18770.0,0.01902688]
[1673574551046,1.039962,18771.0,18770.0,0.01902688]
[1673574552520,0.720404,18771.0,18770.0,0.01902688]
[1673574553223,0.720344,18771.0,18770.0,0.01902688]
[1673574554160,1.039902,18771.0,18770.0,0.01902688]
[1673574555608,0.720344,18771.0,18770.0,0.01902688]
[1673574555850,1.039902,18771.0,18770.0,0.01902688]
[1673574556846,1.339902,18771.0,18770.0,0.01902688]
[1673574557088,1.039902,18771.0,18770.0,0.01902688]
[1673574557814,0.620344,18771.0,18770.0,0.01902688]
[1673574558304,0.10915,18771.0,18770.0,0.01902688]
[1673574558567,0.10915,18771.0,18770.0,0.91315319]
[1673574560699,0.10915,18771.0,18770.0,0.58216219]
[1673574560965,0.10915,18771.0,18770.0,0.91315319]
[1673574561198,0.10915,18771.0,18770.0,0.58216219]
[1673574562650,0.10915,18771.0,18770.0,0.91315319]
[1673574565819,0.10915,18771.0,18770.0,1.01315319]
[1673574566338,0.10915,18771.0,18770.0,1.17191048]
[1673574566577,6e-05,18772.0,18771.0,0.1]
[1673574566810,6e-05,18772.0,18771.0,0.572591]
[1673574567804,6e-05,18772.0,18771.0,0.430991]
[1673574568037,6e-05,18772.0,18771.0,0.571691]
[1673574568518,0.01106,18772.0,18771.0,0.632691]
[1673574568999,0.01106,18772.0,18771.0,0.532691]
[1673574569724,0.01106,18772.0,18771.0,0.632691]
[1673574570455,0.01106,18772.0,18771.0,0.532691]
[1673574571932,0.01106,18772.0,18771.0,0.632691]
[1673574574238,0.01106,18772.0,18771.0,0.532691]
[1673574574961,0.01106,18772.0,18771.0,0.86667668]
[1673574576468,0.01106,18772.0,18771.0,0.53568568]
[1673574576469,0.011,18772.0,18771.0,0.53568568]
[1673574577756,0.111,18772.0,18771.0,0.53568568]
[1673574578511,0.011,18772.0,18771.0,0.53568568]
[1673574578748,0.011,18772.0,18771.0,0.39498568]
[1673574582963,0.011,18772.0,18771.0,0.061]
[1673574584447,0.68779416,18772.0,18771.0,0.046]
[1673574586206,0.58779416,18772.0,18771.0,0.046]
[1673574587210,1.00735216,18772.0,18771.0,0.046]
[1673574587496,1.30835483,18772.0,18771.0,0.046]
[1673574588987,1.80488225,18772.0,18771.0,0.046]
[1673574589251,2.04353625,18772.0,18771.0,0.046]
[1673574589494,2.38382927,18772.0,18771.0,0.046]
[1673574589743,2.2247266,18772.0,18771.0,0.046]
[1673574589997,2.54293193,18772.0,18771.0,0.046]
[1673574590242,2.38372589,18772.0,18771.0,0.046]
[1673574590480,2.17619847,18772.0,18770.0,0.01402688]
[1673574590723,1.61798647,18772.0,18770.0,0.01402688]
[1673574590974,0.419558,18771.0,18770.0,0.01402688]
[1673574591982,0.57855729,18771.0,18770.0,0.01402688]
[1673574592220,2.14753843,18771.0,18770.0,0.01402688]
[1673574592486,2.14753843,18771.0,18770.0,0.02002688]
[1673574592487,2.39877624,18771.0,18770.0,0.02002688]
[1673574592731,3.09641489,18771.0,18770.0,0.02002688]
[1673574592972,2.69894058,18771.0,18770.0,0.02002688]
[1673574593225,2.64794058,18771.0,18770.0,0.01402688]
[1673574593734,3.64722881,18771.0,18770.0,0.01402688]
[1673574593983,3.32922839,18771.0,18770.0,0.01402688]
[1673574594226,3.07288455,18771.0,18770.0,0.01402688]
[1673574594478,3.20988455,18771.0,18770.0,0.01802688]
[1673574595737,2.56324598,18771.0,18770.0,0.01802688]
[1673574595992,2.84376058,18771.0,18770.0,0.01802688]
[1673574596522,3.38505875,18771.0,18770.0,0.01802688]
[1673574596777,2.84382058,18771.0,18770.0,0.01802688]
[1673574597041,2.84382058,18771.0,18768.0,0.03539799]
[1673574597290,0.30077733,18769.0,18768.0,0.03539799]
[1673574597534,1.36062835,18769.0,18768.0,0.03539799]
[1673574597782,2.0424033,18769.0,18768.0,0.03539799]
[1673574598527,2.01752597,18769.0,18768.0,0.03539799]
[1673574599010,1.88352597,18769.0,18768.0,0.03539799]
[1673574599258,1.7424033,18769.0,18768.0,0.03539799]
[1673574599501,2.01752597,18769.0,18768.0,0.03539799]
[1673574599758,2.0424033,18769.0,18768.0,0.03539799]
[1673574600008,2.01852597,18769.0,18768.0,0.03539799]
[1673574600574,2.32680117,18769.0,18768.0,0.03539799]
[1673574600823,2.57481565,18769.0,18768.0,0.03539799]
[1673574601068,3.25992567,18769.0,18768.0,0.03539799]
[1673574601590,3.12492567,18769.0,18768.0,0.03539799]
[1673574601826,2.42485436,18769.0,18768.0,0.03539799]
[1673574602077,3.0153464,18769.0,18768.0,0.03539799]
[1673574602324,3.1804896,18769.0,18768.0,0.03064946]
[1673574602575,3.0454896,18769.0,18768.0,0.03064946]
[1673574602816,2.83227802,18769.0,18768.0,0.03064946]
[1673574603332,3.07037606,18769.0,18768.0,0.03064946]
[1673574603576,2.91127216,18769.0,18768.0,0.03064946]
[1673574604343,2.40159251,18769.0,18768.0,0.03064946]
[1673574604591,2.72735601,18769.0,18768.0,0.03064946]
[1673574604842,2.56870526,18769.0,18768.0,0.03064946]
[1673574605088,2.88645991,18769.0,18768.0,0.03064946]
[1673574605585,2.72726729,18769.0,18768.0,0.03064946]
[1673574605833,3.2961856,18769.0,18768.0,0.03064946]
[1673574607085,3.05808756,18769.0,18768.0,0.03064946]
[1673574607829,3.05802756,18769.0,18768.0,0.03064946]
[1673574608094,2.72720841,18769.0,18768.0,0.03064946]
[1673574608341,2.88639991,18769.0,18768.0,0.03064946]
[1673574608590,3.50755372,18769.0,18767.0,0.01455467]
[1673574608827,1.60755231,18768.0,18767.0,0.01455467]
[1673574609077,2.02711031,18768.0,18767.0,0.01455467]
[1673574609329,2.59059375,18768.0,18767.0,0.01455467]
[1673574609573,2.43206716,18768.0,18767.0,0.01455467]
[1673574610346,0.419558,18768.0,18767.0,0.64581974]
[1673574610598,0.1,18769.0,18767.0,0.4355148]
[1673574610837,0.87891471,18770.0,18767.0,0.4355148]
[1673574610838,0.72039971,18770.0,18767.0,0.4355148]
[1673574611089,0.135,18768.0,18767.0,0.64581974]
[1673574611338,0.454558,18768.0,18767.0,0.4355148]
[1673574611841,0.65761552,18769.0,18767.0,0.01455467]
[1673574611842,1.13920854,18769.0,18767.0,0.01455467]
[1673574612100,1.14727522,18768.0,18767.0,0.01455467]
[1673574612354,0.84727522,18768.0,18767.0,0.01455467]
[1673574612593,1.08227522,18768.0,18767.0,0.01455467]
[1673574612841,0.94727522,18768.0,18767.0,0.01455467]
[1673574613097,0.62771722,18768.0,18767.0,0.01455467]
[1673574613345,0.84727522,18768.0,18767.0,0.01455467]
[1673574613603,0.63371722,18768.0,18767.0,0.01455467]
[1673574613852,0.63377722,18768.0,18767.0,0.01455467]
[1673574616350,0.10606,18768.0,18767.0,0.01455467]
[1673574616598,0.10606,18768.0,18767.0,0.94878191]
[1673574617583,0.10606,18768.0,18767.0,0.62934567]
[1673574618352,0.10606,18768.0,18767.0,0.72934567]
[1673574618855,6e-05,18769.0,18767.0,0.72934567]
[1673574619119,6e-05,18769.0,18768.0,0.714091]
[1673574620117,0.01406,18769.0,18768.0,0.727091]
[1673574621882,6e-05,18769.0,18768.0,0.714091]
[1673574622131,0.01506,18769.0,18768.0,1.31190361]
[1673574622407,6e-05,18769.0,18768.0,1.29890361]
[1673574622665,0.01406,18769.0,18768.0,1.31190361]
[1673574622921,6e-05,18769.0,18768.0,1.29890361]
[1673574623169,0.01506,18769.0,18768.0,1.31190361]
[1673574623433,6e-05,18769.0,18768.0,1.29890361]
[1673574623703,0.01506,18769.0,18768.0,1.31190361]
[1673574624687,0.01506,18769.0,18768.0,0.727091]
[1673574624937,0.01506,18769.0,18768.0,1.17752984]
[1673574625948,0.01506,18769.0,18768.0,0.727091]
[1673574626163,0.01506,18769.0,18768.0,1.34264471]
[1673574626450,0.01506,18769.0,18768.0,0.727091]
[1673574626718,0.01506,18769.0,18768.0,1.88305681]
[1673574626968,0.01506,18769.0,18768.0,1.88305469]
[1673574627946,0.01506,18769.0,18768.0,1.74245469]
[1673574628168,0.01506,18769.0,18768.0,1.12397893]
[1673574628395,0.01506,18769.0,18768.0,0.88584829]
[1673574629140,0.01506,18769.0,18768.0,1.34000507]
[1673574629382,0.01506,18769.0,18768.0,1.32878335]
[1673574629629,0.01506,18769.0,18768.0,1.1668738]
[1673574631142,0.01506,18769.0,18768.0,1.32563109]
[1673574631394,0.01506,18769.0,18768.0,1.16371117]
[1673574631638,0.01506,18769.0,18768.0,1.06941117]
[1673574633372,0.01506,18769.0,18768.0,1.06649489]
[1673574633929,0.015,18769.0,18768.0,1.06649489]
[1673574635858,0.015,18769.0,18768.0,0.87769489]
[1673574638074,0.015,18769.0,18768.0,0.42042225]
[1673574638549,0.015,18769.0,18768.0,0.51502225]
[1673574639300,0.015,18769.0,18768.0,0.67377954]
[1673574639800,0.015,18769.0,18768.0,0.95904405]
[1673574640519,0.015,18769.0,18768.0,1.2637506]
[1673574640759,0.015,18769.0,18768.0,1.10499331]
[1673574641241,0.34035302,18773.0,18769.0,0.1]
[1673574641479,0.66921914,18773.0,18770.0,0.54129594]
[1673574641729,0.66921914,18773.0,18771.0,0.330991]
[1673574641970,0.66921914,18773.0,18772.0,0.330991]
[1673574642216,0.66921914,18773.0,18770.0,0.50583265]
[1673574642461,0.66921914,18773.0,18771.0,0.64981003]
[1673574642706,0.66921914,18773.0,18772.0,0.330991]
[1673574643695,0.69921914,18773.0,18772.0,0.330991]
[1673574643936,0.66921914,18773.0,18772.0,0.330991]
[1673574644180,0.77321914,18773.0,18772.0,0.333991]
[1673574644799,0.66921914,18773.0,18772.0,0.330991]
[1673574645041,0.67721914,18773.0,18772.0,0.35587271]
[1673574645792,0.00806,18773.0,18772.0,0.35587271]
[1673574646049,0.00806,18773.0,18772.0,0.73224627]
[1673574646293,0.00806,18773.0,18772.0,0.73124627]
[1673574646771,6e-05,18773.0,18772.0,0.70624627]
[1673574647028,0.00806,18773.0,18772.0,0.83124627]
[1673574647796,6e-05,18773.0,18772.0,0.80624627]
[1673574648043,0.01506,18773.0,18772.0,0.83224627]
[1673574650018,0.015,18773.0,18772.0,0.83224627]
[1673574650269,0.00876,18773.0,18772.0,0.83224627]
[1673574651726,0.00876,18773.0,18772.0,0.73224627]
[1673574653014,0.00876,18773.0,18772.0,0.35587271]
[1673574653992,0.00876,18773.0,18772.0,0.026]
[1673574654222,0.60202335,18773.0,18772.0,0.026]
[1673574654459,0.60062507,18773.0,18772.0,0.026]
[1673574654696,0.60062507,18773.0,18772.0,0.35684]
[1673574656446,0.60039411,18773.0,18772.0,0.35684]
[1673574657406,0.00713076,18773.0,18772.0,0.89876202]
[1673574660823,0.00713076,18773.0,18772.0,1.05751931]
[1673574661573,0.00400235,18773.0,18772.0,1.05441125]
[1673574662883,0.00400235,18773.0,18772.0,1.88711643]
[1673574663131,0.00400235,18773.0,18772.0,1.75629986]
[1673574663398,0.0059903,18775.0,18773.0,0.00350557]
[1673574663641,0.0059903,18775.0,18774.0,1.79444589]
[1673574663950,0.0059903,18775.0,18774.0,2.13094935]
[1673574664146,0.00282505,18775.0,18774.0,2.13094935]
[1673574664402,0.00422244,18777.0,18775.0,0.1]
[1673574664664,0.00422244,18777.0,18776.0,0.47274]
[1673574664904,0.00422244,18777.0,18776.0,0.33084]
[1673574665177,0.00422244,18777.0,18776.0,0.33043829]
[1673574666369,0.10122244,18777.0,18776.0,0.7291958]
[1673574666612,0.10122244,18777.0,18776.0,0.8291958]
[1673574669191,0.10122244,18777.0,18776.0,0.82652749]
[1673574671004,0.08678244,18777.0,18776.0,0.82652749]
[1673574671250,0.08678244,18777.0,18776.0,0.83502749]
[1673574671988,0.08678244,18777.0,18776.0,0.97582749]
[1673574672485,0.08678244,18777.0,18776.0,0.58106998]
[1673574672975,0.08678244,18777.0,18776.0,1.17024461]
[1673574675962,0.08678244,18777.0,18776.0,1.02944461]
[1673574676480,0.08678244,18777.0,18776.0,0.0125]
[1673574677218,0.08678244,18777.0,18776.0,0.343286]
[1673574677955,0.08678244,18777.0,18776.0,0.34061769]
[1673574678217,0.6746826,18777.0,18776.0,0.10133169]
[1673574678465,0.6746826,18777.0,18776.0,0.00133169]
[1673574678717,1.2818606,18777.0,18776.0,0.00133169]
[1673574678962,1.3818606,18777.0,18776.0,0.00133169]
[1673574682486,0.9580826,18777.0,18776.0,0.00133169]
[1673574683220,0.8165826,18777.0,18776.0,0.00133169]
[1673574683474,0.08678244,18777.0,18776.0,0.40797068]
[1673574683723,0.08678244,18777.0,18776.0,0.73875668]
[1673574684463,0.08678244,18777.0,18776.0,0.83875668]
[1673574685443,0.07949165,18777.0,18776.0,0.83875668]
[1673574687686,0.07949165,18777.0,18776.0,0.49963769]
[1673574687957,0.07949165,18777.0,18776.0,1.13408937]
[1673574689443,0.07853278,18777.0,18776.0,1.13408937]
[1673574693155,0.07853278,18777.0,18776.0,1.14258937]
[1673574695117,0.07853278,18777.0,18776.0,1.04258937]
[1673574695605,0.07853278,18777.0,18776.0,0.97506937]
[1673574697563,0.07853278,18777.0,18776.0,0.64428337]
[1673574697806,0.07853278,18777.0,18776.0,0.97506937]
[1673574698315,0.07853278,18777.0,18776.0,0.64428337]
[1673574699023,0.07853278,18777.0,18776.0,0.64161506]
[1673574699274,0.07853278,18777.0,18776.0,0.96390106]
[1673574699493,0.07853278,18777.0,18776.0,0.96290106]
[1673574700044,0.07853278,18777.0,18776.0,0.62944675]
[1673574700993,0.07853278,18777.0,18776.0,0.62888031]
[1673574701270,0.07853278,18777.0,18776.0,0.95966631]
[1673574701992,0.07853278,18777.0,18776.0,0.95779874]
[1673574702232,0.07853278,18777.0,18776.0,0.62701274]
[1673574702473,0.07853278,18777.0,18776.0,0.95779874]
[1673574702974,0.07853278,18777.0,18776.0,0.62515629]
[1673574703524,0.07853278,18777.0,18775.0,0.15945441]
[1673574703771,0.6220057,18777.0,18774.0,0.73267733]
[1673574704007,0.7166057,18777.0,18774.0,0.73267733]
[1673574704249,0.8751207,18777.0,18774.0,0.73267733]
[1673574704494,0.8751207,18777.0,18774.0,0.57322292]
[1673574704730,0.79658792,18777.0,18774.0,0.57322292]
[1673574704994,0.80458792,18777.0,18774.0,0.62036648]
[1673574705246,0.90458792,18777.0,18774.0,0.62036648]
[1673574705487,0.80458792,18777.0,18774.0,0.62036648]
[1673574705964,0.80458792,18777.0,18774.0,0.61894643]
[1673574706458,0.5007651,18776.0,18774.0,0.61894643]
[1673574707186,0.5007651,18776.0,18774.0,0.61837521]
[1673574707430,0.5007651,18776.0,18774.0,0.56937521]
[1673574707698,0.5087651,18776.0,18774.0,0.61837521]
[1673574707950,0.5087651,18776.0,18774.0,0.04633141]
[1673574707951,0.0946,18775.0,18774.0,0.04633141]
[1673574708230,0.518378,18775.0,18774.0,0.04633141]
[1673574708485,0.418378,18775.0,18774.0,0.04633141]
[1673574708733,0.0946,18775.0,18774.0,0.04633141]
[1673574708964,0.0946,18775.0,18773.0,0.68886951]
[1673574709218,0.008,18775.0,18774.0,0.04433141]
[1673574709508,0.1026,18775.0,18774.0,0.04433141]
[1673574709991,0.1026,18775.0,18773.0,0.68886951]
[1673574709992,0.0946,18775.0,18773.0,0.68886951]
[1673574710249,0.0946,18774.0,18773.0,0.73386951]
[1673574710733,0.014,18775.0,18773.0,0.73386951]
[1673574710970,0.0946,18776.0,18773.0,0.84832392]
[1673574711216,0.008,18775.0,18774.0,0.045]
[1673574711458,0.0946,18776.0,18773.0,0.68886951]
[1673574711698,0.014,18775.0,18773.0,0.73386951]
[1673574711948,0.8783639,18776.0,18773.0,0.68886951]
[1673574712666,0.1,18775.0,18773.0,0.68886951]
[1673574712916,0.014,18775.0,18773.0,0.68636824]
[1673574713203,0.014,18775.0,18774.0,0.1]
[1673574713913,0.014,18775.0,18774.0,0.09733141]
[1673574714449,0.49729689,18775.0,18773.0,0.82936824]
[1673574714684,0.49729689,18775.0,18773.0,0.78636824]
[1673574714921,0.50529689,18775.0,18774.0,0.03933141]
[1673574715661,0.49729689,18775.0,18773.0,0.78636824]
[1673574715913,0.51129689,18775.0,18773.0,0.82636824]
[1673574716149,0.51129689,18775.0,18773.0,0.78636824]
[1673574716402,0.51929689,18775.0,18774.0,0.03733141]
[1673574717143,0.008,18775.0,18774.0,0.03466267]
[1673574717391,0.64755216,18775.0,18773.0,0.82236824]
[1673574717637,0.66155216,18775.0,18773.0,0.78636824]
[1673574717932,0.66955216,18775.0,18774.0,0.035]
[1673574718178,0.66955216,18775.0,18773.0,0.78636824]
[1673574718179,0.64755216,18775.0,18773.0,0.78636824]
[1673574718420,0.66155216,18775.0,18773.0,0.1340043]
[1673574718662,0.66155216,18775.0,18773.0,0.1010043]
[1673574718901,0.66955216,18775.0,18774.0,0.02933126]
[1673574719159,0.66955216,18775.0,18773.0,0.0010043]
[1673574719160,1.07133016,18775.0,18773.0,0.0010043]
[1673574719422,0.74755216,18775.0,18773.0,0.0010043]
[1673574719672,1.12956908,18774.0,18773.0,0.0010043]
[1673574719914,0.1,18773.0,18771.0,0.83041114]
[1673574720164,0.70579108,18774.0,18773.0,0.031]
[1673574720409,0.70579108,18774.0,18772.0,0.1]
[1673574720663,0.71979108,18774.0,18773.0,0.031]
[1673574721147,0.71979108,18774.0,18773.0,0.02833126]
[1673574722137,0.71979108,18774.0,18773.0,0.02566252]
[1673574723149,0.71979108,18774.0,18773.0,0.02299378]
[1673574724129,0.71979108,18774.0,18773.0,0.02032504]
[1673574724896,0.71979108,18774.0,18773.0,0.0176563]
[1673574726093,0.71979108,18774.0,18773.0,0.01498756]
[1673574727073,0.014,18774.0,18773.0,0.2862466]
[1673574727309,0.014,18774.0,18773.0,1.08692336]
[1673574727552,0.014,18774.0,18773.0,1.94401939]
[1673574728038,0.014,18774.0,18773.0,1.94349871]
[1673574728997,0.014,18774.0,18773.0,1.94082997]
[1673574729509,0.009,18774.0,18773.0,1.94082997]
[1673574729991,0.009,18774.0,18773.0,1.77870682]
[1673574730231,0.009,18774.0,18773.0,2.09782582]
[1673574730732,0.009,18774.0,18773.0,2.25738532]
[1673574730986,0.009,18774.0,18773.0,2.25471658]
[1673574731767,0.009,18774.0,18773.0,1.73397529]
[1673574731981,0.009,18774.0,18773.0,1.73377723]
[1673574732252,0.009,18774.0,18773.0,1.41485629]
[1673574732734,0.6151765,18778.0,18774.0,0.10778991]
[1673574732963,0.6151765,18778.0,18775.0,0.93972879]
[1673574733206,0.6151765,18778.0,18776.0,0.330786]
[1673574733471,0.6151765,18778.0,18775.0,0.39863785]
[1673574733714,0.6151765,18778.0,18776.0,0.1]
[1673574733958,0.6231765,18778.0,18776.0,0.1]
[1673574734208,0.6151765,18778.0,18776.0,0.1]
[1673574734459,0.6541765,18778.0,18776.0,0.1]
[1673574734964,0.6541765,18778.0,18776.0,0.09733169]
[1673574735455,0.6151765,18778.0,18777.0,0.330779]
[1673574735702,0.6151765,18778.0,18776.0,0.09733169]
[1673574735970,0.6151765,18778.0,18777.0,0.32811069]
[1673574736216,0.00639739,18778.0,18777.0,0.32811069]
[1673574736903,0.03539739,18778.0,18777.0,0.33044252]
[1673574737413,0.03539739,18778.0,18777.0,0.94966289]
[1673574737414,0.0296763,18778.0,18777.0,0.94966289]
[1673574738159,0.0296763,18778.0,18777.0,0.94699472]
[1673574738892,0.0296763,18778.0,18777.0,0.72832949]
[1673574739141,0.0296763,18778.0,18777.0,1.75023092]
[1673574739399,0.0296763,18778.0,18777.0,2.36723894]
[1673574739644,0.0296763,18778.0,18777.0,2.36223894]
[1673574739645,0.0006763,18778.0,18777.0,2.36223894]
[1673574740146,0.0146763,18778.0,18777.0,2.38657077]
[1673574741155,0.0146763,18778.0,18777.0,2.3839026]
[1673574741651,0.0146763,18778.0,18777.0,2.22422062]
[1673574741918,0.0146763,18778.0,18777.0,2.36275245]
[1673574743139,0.0146763,18778.0,18777.0,2.36008428]
[1673574743389,0.0146763,18778.0,18777.0,1.74307626]
[1673574743634,0.0146763,18778.0,18777.0,1.50389355]
[1673574743882,0.0146763,18778.0,18777.0,1.11714451]
[1673574744126,0.0146763,18778.0,18777.0,1.75511078]
[1673574744377,0.0146763,18778.0,18777.0,1.51592807]
[1673574744621,0.0146763,18778.0,18777.0,2.37172888]
[1673574744868,0.0146763,18778.0,18777.0,2.36906071]
[1673574745626,0.0146763,18778.0,18777.0,1.75244261]
[1673574745880,0.0146763,18778.0,18777.0,1.5132599]
[1673574746127,0.0146763,18778.0,18777.0,1.51059173]
[1673574746886,0.0146763,18778.0,18777.0,1.36949173]
[1673574747145,0.0146763,18778.0,18777.0,1.36682356]
[1673574748155,0.0146763,18778.0,18777.0,1.36415539]
[1673574748916,0.0146763,18778.0,18777.0,1.36148722]
[1673574749656,0.0146763,18778.0,18777.0,0.72085278]
[1673574749904,0.0146763,18778.0,18777.0,0.71818461]
[1673574750637,0.0146763,18778.0,18777.0,1.09846732]
[1673574751147,0.0146763,18778.0,18777.0,1.09579915]
[1673574751634,0.0146763,18778.0,18777.0,0.85661644]
[1673574752108,0.0146763,18778.0,18777.0,0.85394827]
[1673574752355,0.0146763,18778.0,18777.0,1.09313098]
[1673574752607,0.0146763,18778.0,18777.0,0.85394827]
[1673574752852,0.00672376,18779.0,18778.0,0.1740282]
[1673574753093,0.00672376,18779.0,18778.0,1.3201255]
[1673574754107,0.00672376,18779.0,18778.0,1.31745747]
[1673574755117,0.00672376,18779.0,18778.0,1.31478944]
[1673574755355,0.00672376,18779.0,18778.0,1.35378944]
[1673574755356,0.02072376,18779.0,18778.0,1.35378944]
[1673574756087,0.02072376,18779.0,18778.0,1.35112141]
[1673574756333,0.00672376,18779.0,18778.0,1.31212141]
[1673574756576,0.02072376,18779.0,18778.0,1.35212141]
[1673574757064,0.02072376,18779.0,18778.0,1.34945338]
[1673574758029,0.02072376,18779.0,18778.0,1.06348535]
[1673574758291,0.02072376,18779.0,18778.0,1.00213535]
[1673574758542,0.02072376,18779.0,18778.0,0.46744888]
[1673574758788,0.72934879,18779.0,18778.0,0.04]
[1673574759033,0.72934879,18779.0,18778.0,0.03733197]
[1673574759034,0.02072376,18779.0,18778.0,0.03733197]
[1673574759276,0.02072376,18779.0,18778.0,0.46809097]
[1673574760019,0.02072376,18779.0,18778.0,0.46542294]
[1673574760996,0.02072376,18779.0,18778.0,0.46275491]
[1673574761466,0.02072376,18779.0,18778.0,0.36275491]
[1673574761944,0.02072376,18779.0,18778.0,0.36109358]
[1673574762717,0.56390715,18779.0,18778.0,0.36109358]
[1673574762964,0.56390715,18779.0,18778.0,0.35942743]
[1673574763948,0.56390715,18779.0,18778.0,0.35775562]
[1673574764926,0.56390715,18779.0,18778.0,0.35508759]
[1673574765883,0.56390715,18779.0,18778.0,0.35241956]
[1673574767134,0.56390715,18779.0,18778.0,0.34975153]
[1673574767867,0.70570715,18779.0,18778.0,0.34975153]
[1673574768121,0.70570715,18779.0,18778.0,0.01899253]
[1673574770143,0.70570715,18779.0,18778.0,0.01681712]
[1673574771183,0.70570715,18779.0,18778.0,0.01593091]
[1673574771685,0.70570715,18779.0,18778.0,0.17515921]
[1673574771928,0.70570715,18779.0,18778.0,0.173103]
[1673574772942,0.70570715,18779.0,18778.0,0.17220198]
[1673574773684,0.70570715,18779.0,18778.0,0.27220198]
[1673574773937,0.70157258,18779.0,18778.0,0.51138469]
[1673574774176,0.70157258,18779.0,18778.0,1.45359699]
[1673574774177,0.15838919,18779.0,18778.0,1.45359699]
[1673574775137,0.15838919,18779.0,18778.0,1.61061094]
[1673574775388,0.15838919,18779.0,18778.0,1.29170066]
[1673574775633,0.15838919,18779.0,18778.0,1.61061094]
[1673574776101,0.15838919,18779.0,18778.0,1.27718391]
[1673574776844,0.15838919,18779.0,18778.0,1.60794291]
[1673574777087,0.15838919,18779.0,18778.0,1.60527488]
[1673574777645,0.15838919,18779.0,18778.0,1.76473002]
[1673574777871,0.15838919,18779.0,18778.0,1.76206199]
[1673574778596,0.01658919,18779.0,18778.0,1.76206199]
[1673574778904,0.01658919,18779.0,18778.0,1.75939396]
[1673574780090,0.01658919,18779.0,18778.0,1.75672593]
[1673574780569,0.01658919,18779.0,18778.0,1.96982631]
[1673574781044,0.01658919,18779.0,18778.0,1.96715828]
[1673574782004,0.01658919,18779.0,18778.0,1.96449025]
[1673574782712,0.01658919,18779.0,18778.0,1.5658524]
[1673574783176,0.01658919,18779.0,18778.0,1.56318437]
[1673574784004,0.01658919,18779.0,18778.0,1.56051634]
[1673574784698,0.01336714,18779.0,18778.0,1.95938557]
[1673574784939,0.01336714,18779.0,18778.0,1.56051634]
[1673574785183,0.01336714,18779.0,18778.0,1.95672176]
[1673574785924,0.01336714,18779.0,18778.0,1.95405373]
[1673574787170,0.01336714,18779.0,18778.0,2.27047566]
[1673574787411,0.01336714,18779.0,18778.0,1.9513857]
[1673574787669,0.69954179,18779.0,18778.0,1.18420469]
[1673574787920,0.69954179,18779.0,18778.0,1.01299378]
[1673574788170,0.69954179,18779.0,18778.0,1.01032575]
[1673574788672,0.84004179,18779.0,18778.0,1.01032575]
[1673574788917,0.84004179,18779.0,18778.0,0.39887245]
[1673574789161,0.84004179,18779.0,18778.0,0.15954809]
[1673574790153,0.84004179,18779.0,18778.0,0.25688006]
[1673574790910,0.84004179,18779.0,18778.0,0.1]
[1673574792911,0.84004179,18779.0,18778.0,0.41908957]
[1673574793164,0.84004179,18779.0,18778.0,0.74984857]
[1673574793408,0.15386714,18779.0,18778.0,0.74984857]
[1673574793658,0.15386714,18779.0,18778.0,1.75792169]
[1673574798073,0.15386714,18779.0,18778.0,1.75797021]
[1673574798813,0.01336714,18779.0,18778.0,1.75797021]
[1673574800351,0.52117727,18779.0,18778.0,1.59845726]
[1673574801072,0.01336714,18779.0,18778.0,1.59845726]
[1673574801325,0.01336714,18779.0,18778.0,1.59845605]
[1673574801575,0.01336714,18779.0,18778.0,1.75797021]
[1673574803070,0.01336714,18779.0,18778.0,2.37228147]
[1673574803310,0.01336714,18779.0,18778.0,2.27228147]
[1673574803566,0.67317405,18779.0,18778.0,2.11276123]
[1673574803812,0.67317405,18779.0,18778.0,1.34400032]
[1673574804052,0.67317405,18779.0,18778.0,0.39893006]
[1673574804598,0.01336714,18779.0,18778.0,0.39893006]
[1673574804852,0.01336714,18779.0,18778.0,1.6035967]
[1673574806584,0.01336714,18779.0,18778.0,1.28445861]
[1673574806823,0.01336714,18779.0,18778.0,1.44404632]
[1673574807302,0.01336714,18779.0,18778.0,1.34404632]
[1673574808542,0.01336714,18779.0,18778.0,1.18445861]
[1673574808770,0.15386714,18779.0,18778.0,1.18445861]
[1673574809017,0.15386714,18779.0,18778.0,0.85369961]
[1673574809517,0.15386714,18779.0,18778.0,1.33244952]
[1673574809753,0.15386714,18779.0,18778.0,1.01331143]
[1673574810246,0.70761559,18779.0,18778.0,1.01331143]
[1673574813162,0.70761559,18779.0,18778.0,0.85369961]
[1673574813286,0.70761559,18779.0,18778.0,1.01330991]
[1673574814193,0.70761559,18779.0,18778.0,0.39896351]
[1673574814454,0.70761559,18779.0,18778.0,0.1596103]
[1673574816135,0.70761559,18779.0,18778.0,0.2596103]
[1673574816342,0.70761559,18779.0,18778.0,0.39896351]
[1673574817238,0.70761559,18779.0,18778.0,0.1596103]
[1673574818141,0.70761559,18779.0,18778.0,0.39896351]